bitfinex-derivatives/quotes_SOLF0:USTF0_20251207
["timestamp","ask_amount","ask_price","bid_price","bid_amount"]
[1765118205150,4.98320652,128.81,128.74,71.4]
[1765118205350,3.42320652,128.81,128.74,71.4]
[1765118205550,3.42320652,128.81,128.69,71.4]
[1765118205748,3.37,128.81,128.69,71.4]
[1765118206050,3.37,128.8,128.74,0.05891074]
[1765118206244,3.37,128.76,128.74,0.05891074]
[1765118206641,3.42425067,128.78,128.74,0.05891074]
[1765118207860,3.12,128.77,128.66,71.38]
[1765118208160,3.12,128.79,128.66,71.38]
[1765118208359,3.12,128.79,128.66,180.1846]
[1765118208743,0.05483971,128.74,128.71,0.04978573]
[1765118209046,3.12,128.84,128.74,108.7332]
[1765118209246,3.12,128.84,128.75,71.36]
[1765118209955,0.04940354,128.81,128.78,0.05204826]
[1765118211059,3.12,128.88,128.78,0.05204826]
[1765118211256,3.12,128.88,128.77,108.7091]
[1765118211257,3.12,128.88,128.77,6.9882]
[1765118211852,3.12,128.88,128.75,78.3495]
[1765118212052,0.05799846,128.83,128.8,0.05300427]
[1765118212350,0.05799846,128.83,128.8,0.05336534]
[1765118213550,3.12,128.88,128.8,7.04026534]
[1765118213751,3.12,128.88,128.8,6.9869]
[1765118213951,3.12,128.88,128.77,108.7072]
[1765118214151,3.12,128.88,128.78,71.32]
[1765118214353,3.12,128.88,128.73,108.7415]
[1765118214354,3.12,128.87,128.73,108.7415]
[1765118214546,0.05409796,128.81,128.79,0.05944583]
[1765118214747,3.12,128.87,128.79,0.05908949]
[1765118214947,3.12,128.87,128.79,108.695]
[1765118215147,3.12,128.91,128.82,108.6697]
[1765118215363,3.12,128.91,128.83,71.3]
[1765118215562,3.12,128.91,128.83,179.959]
[1765118215858,0.05147812,128.88,128.86,0.05033326]
[1765118216357,3.36,128.94,128.86,0.05033326]
[1765118216559,3.36,128.94,128.86,108.6349]
[1765118216959,3.36,128.94,128.86,108.6352]
[1765118217165,3.36,128.94,128.84,108.6505]
[1765118217366,3.41703248,128.91,128.89,0.05676547]
[1765118217556,3.41508125,128.91,128.89,0.05050645]
[1765118217864,0.05508125,128.91,128.89,0.05050645]
[1765118218465,3.41508125,128.91,128.89,0.05050645]
[1765118218858,3.41508125,128.91,128.86,71.28]
[1765118219059,3.36,128.89,128.77,108.7088]
[1765118219260,3.36,128.89,128.81,108.678]
[1765118219567,3.36,128.89,128.82,108.6672]
[1765118219864,0.05026657,128.87,128.84,0.05767783]
[1765118220462,0.05026657,128.87,128.85,71.26]
[1765118220764,0.05026657,128.87,128.84,0.05767783]
[1765118220765,3.41026657,128.87,128.84,0.05767783]
[1765118221066,3.36,128.86,128.76,108.7171]
[1765118221454,3.36,128.86,128.78,6.9878]
[1765118221658,3.36,128.86,128.78,108.7015]
[1765118221855,3.41351958,128.83,128.81,0.05568531]
[1765118222066,0.04965793,128.83,128.81,0.05593535]
[1765118222468,0.04965793,128.83,128.82,71.24]
[1765118223471,0.04965793,128.83,128.81,0.05593535]
[1765118223472,3.40965793,128.83,128.81,0.05593535]
[1765118224364,3.36,128.82,128.77,71.22]
[1765118224567,3.36,128.82,128.68,435.1399]
[1765118224770,3.36,128.82,128.73,71.22]
[1765118224962,3.36,128.82,128.73,186.9536]
[1765118225164,3.36,128.82,128.73,78.2103]
[1765118225363,0.05325294,128.79,128.76,0.05785763]
[1765118225672,403.5983,128.91,128.77,224.4113]
[1765118225673,3.36,128.85,128.77,224.4113]
[1765118226262,3.36,128.85,128.78,115.6898]
[1765118226472,3.36,128.85,128.79,71.22]
[1765118226677,0.05419653,128.83,128.81,0.05537038]
[1765118226873,3.41419653,128.83,128.79,67.79]
[1765118227072,3.36,128.82,128.73,71.2]
[1765118227871,3.40921089,128.79,128.76,0.05259235]
[1765118228070,3.40921089,128.79,128.76,0.05436905]
[1765118228873,0.04921089,128.79,128.76,111.89106905]
[1765118229078,298.36,128.87,128.79,108.6918]
[1765118229270,3.36,128.85,128.74,108.7356]
[1765118229479,3.36,128.85,128.75,179.9284]
[1765118229675,3.36,128.83,128.75,71.2]
[1765118230074,0.05256459,128.8,128.78,0.04937648]
[1765118230370,3.41256459,128.8,128.78,0.04937648]
[1765118231575,3.36,128.79,128.7,6.9923]
[1765118231974,3.36,128.76,128.66,179.9799]
[1765118232180,3.36,128.75,128.66,186.9739]
[1765118232379,3.36,128.75,128.66,78.174]
[1765118232579,3.36,128.71,128.69,0.05050317]
[1765118232779,3.36,128.75,128.69,111.94820317]
[1765118232973,3.36,128.75,128.65,111.9305]
[1765118233175,3.36,128.75,128.66,108.8033]
[1765118233379,3.36,128.75,128.67,115.7904]
[1765118233784,0.05702773,128.72,128.7,0.05160038]
[1765118234577,3.41702773,128.72,128.7,0.05160038]
[1765118236076,0.05702773,128.72,128.7,0.05160038]
[1765118236275,3.41702773,128.72,128.7,0.05160038]
[1765118236581,3.41702773,128.72,128.64,3.12]
[1765118236780,3.36,128.72,128.64,3.12]
[1765118236986,3.36,128.72,128.62,71.18]
[1765118237580,3.36,128.72,128.62,74.53]
[1765118237784,3.23,128.67,128.66,0.05972313]
[1765118238082,0.0492572,128.68,128.66,0.05972313]
[1765118239283,3.2792572,128.68,128.66,0.05972313]
[1765118240587,112.0712572,128.68,128.66,0.05972313]
[1765118240784,3.23,128.67,128.66,0.05972313]
[1765118241284,3.23,128.67,128.62,71.18]
[1765118241585,3.23,128.66,128.62,71.18]
[1765118241882,3.23,128.65,128.58,3.35]
[1765118242289,119.0434,128.65,128.58,3.35]
[1765118242488,0.05844186,128.63,128.6,0.05779694]
[1765118243192,10.28484186,128.63,128.6,0.05779694]
[1765118243392,3.23,128.62,128.6,0.05779694]
[1765118243688,3.23,128.61,128.6,0.05779694]
[1765118244391,3.23,128.61,128.56,71.18]
[1765118244779,3.23,128.61,128.56,74.53]
[1765118245175,115.8196,128.64,128.57,3.35]
[1765118245389,3.23,128.61,128.59,0.05825593]
[1765118245584,3.23,128.6,128.59,0.05825593]
[1765118245786,3.23,128.6,128.53,93.12]
[1765118245787,112.0971,128.59,128.53,93.12]
[1765118245990,3.23,128.57,128.51,74.51]
[1765118246890,0.05209243,128.55,128.53,0.05852157]
[1765118247088,3.28209243,128.55,128.53,0.05852157]
[1765118247394,0.05209243,128.55,128.53,0.05852157]
[1765118248090,3.28209243,128.55,128.53,0.05852157]
[1765118248293,0.05209243,128.55,128.53,0.05852157]
[1765118248592,0.05209243,128.55,128.53,3.40852157]
[1765118249094,112.0677,128.63,128.53,3.40852157]
[1765118249294,112.0677,128.63,128.53,3.35]
[1765118249989,112.0713,128.62,128.53,3.35]
[1765118250190,0.05839865,128.59,128.56,3.40172439]
[1765118250495,0.05839865,128.59,128.56,3.40634203]
[1765118250795,0.05839865,128.59,128.56,0.05634203]
[1765118250989,3.28839865,128.59,128.56,0.05634203]
[1765118251403,10.28719865,128.59,128.56,0.05634203]
[1765118251693,3.23,128.58,128.56,0.05634203]
[1765118252585,0.05839865,128.59,128.56,0.05634203]
[1765118252788,3.28839865,128.59,128.56,0.05634203]
[1765118253495,10.2292,128.58,128.56,0.05634203]
[1765118253795,0.05839865,128.59,128.56,0.05634203]
[1765118254594,3.28839865,128.59,128.56,0.05634203]
[1765118255495,10.2289,128.58,128.56,0.05634203]
[1765118255891,0.05839865,128.59,128.56,3.40634203]
[1765118256192,10.28699865,128.59,128.56,0.05634203]
[1765118256392,3.23,128.58,128.56,0.05634203]
[1765118256590,10.2292,128.58,128.56,0.05634203]
[1765118256785,0.05839865,128.59,128.56,0.05634203]
[1765118256991,3.28839865,128.59,128.56,0.05634203]
[1765118257191,0.05839865,128.59,128.56,0.05634203]
[1765118257996,0.05839865,128.59,128.56,3.40634203]
[1765118258396,0.05839865,128.59,128.56,0.05634203]
[1765118258397,6.9992,128.58,128.56,0.05634203]
[1765118258594,10.2292,128.58,128.56,0.05634203]
[1765118259193,3.23,128.57,128.56,0.05634203]
[1765118259996,10.2292,128.58,128.56,0.05634203]
[1765118260195,0.05839865,128.59,128.56,0.05634203]
[1765118260398,3.28839865,128.59,128.56,0.05634203]
[1765118260902,10.28729865,128.59,128.56,0.05634203]
[1765118261597,3.23,128.58,128.56,0.05634203]
[1765118261797,7.05729865,128.59,128.56,0.05634203]
[1765118262187,3.28839865,128.59,128.56,0.05634203]
[1765118262998,0.05839865,128.59,128.56,3.40634203]
[1765118264300,108.8116,128.66,128.57,3.35]
[1765118264494,10.2254,128.65,128.57,3.35]
[1765118264700,3.23,128.65,128.57,3.35]
[1765118265289,0.05397798,128.62,128.6,0.0554452]
[1765118265900,0.05397798,128.62,128.6,3.4054452]
[1765118268606,3.39397798,128.62,128.6,0.0554452]
[1765118269106,3.34,128.61,128.53,74.3]
[1765118269301,10.3376,128.61,128.54,3.22]
[1765118270006,0.04984821,128.59,128.56,3.27951704]
[1765118271602,0.04984821,128.59,128.56,0.05951704]
[1765118271810,3.38984821,128.59,128.56,0.05951704]
[1765118273307,0.04984821,128.59,128.56,0.05951704]
[1765118274911,0.04984821,128.59,128.56,3.27951704]
[1765118275313,0.04984821,128.59,128.56,0.05951704]
[1765118275513,108.8253,128.64,128.56,0.05951704]
[1765118275514,3.32,128.66,128.57,74.18]
[1765118275720,3.32,128.66,128.57,3.14]
[1765118276008,3.32,128.63,128.54,10.1407]
[1765118276216,3.32,128.63,128.55,3.14]
[1765118276414,0.0591139,128.6,128.58,0.05769853]
[1765118279110,3.32,128.67,128.58,3.19769853]
[1765118279315,112.1281,128.66,128.58,3.14]
[1765118279509,3.32,128.65,128.58,3.14]
[1765118280117,0.05755633,128.63,128.6,0.05690385]
[1765118280310,3.37755633,128.63,128.6,0.05690385]
[1765118280706,3.32,128.62,128.53,3.14]
[1765118281414,3.32,128.59,128.52,71.0]
[1765118281608,0.05772289,128.57,128.54,3.1954595]
[1765118281811,0.05772289,128.57,128.54,3.19198226]
[1765118283814,0.05772289,128.57,128.55,3.14]
[1765118285512,0.05772289,128.57,128.54,71.05198226]
[1765118285716,0.05772289,128.57,128.54,0.05198226]
[1765118286023,3.37772289,128.57,128.54,0.05198226]
[1765118287017,0.05772289,128.57,128.54,0.05198226]
[1765118287425,0.05772289,128.57,128.54,3.19198226]
[1765118287718,0.05772289,128.57,128.54,0.05198226]
[1765118287919,3.37772289,128.57,128.54,0.05198226]
[1765118292230,0.05772289,128.57,128.54,3.19198226]
[1765118293220,0.05772289,128.57,128.56,3.14]
[1765118293422,3.32,128.63,128.56,3.14]
[1765118293626,112.1525,128.63,128.55,70.94]
[1765118293928,3.32,128.61,128.54,70.94]
[1765118294326,0.05725231,128.59,128.56,0.05111009]
[1765118296827,112.24215231,128.59,128.56,0.05111009]
[1765118297034,3.32,128.58,128.56,0.05111009]
[1765118297429,3.32,128.57,128.54,68.10163444]
[1765118298242,3.3,128.56,128.54,68.10163444]
[1765118298434,3.35914266,128.56,128.54,68.15194844]
[1765118298635,3.35914266,128.56,128.54,0.050314]
[1765118298836,10.35944266,128.56,128.54,0.050314]
[1765118299037,3.35914266,128.56,128.54,0.050314]
[1765118300934,0.05914266,128.56,128.54,0.050314]
[1765118301340,0.05914266,128.56,128.54,3.250314]
[1765118301937,6.9977,128.61,128.54,3.250314]
[1765118302126,6.9977,128.61,128.54,3.2]
[1765118302728,0.05539155,128.59,128.56,0.05632054]
[1765118302932,0.05539155,128.59,128.56,3.25632054]
[1765118303129,3.35539155,128.59,128.56,0.05632054]
[1765118303327,0.05539155,128.59,128.56,0.05632054]
[1765118303727,10.35399155,128.59,128.56,0.05632054]
[1765118305137,10.2992,128.58,128.56,0.05632054]
[1765118309244,3.3,128.57,128.56,0.05632054]
[1765118309436,10.2992,128.58,128.56,0.05632054]
[1765118312145,3.3,128.58,128.56,0.05632054]
[1765118312340,0.05539155,128.59,128.56,0.05632054]
[1765118312543,3.35539155,128.59,128.56,0.05632054]
[1765118313433,0.05539155,128.59,128.56,3.25632054]
[1765118314247,3.35539155,128.59,128.56,3.25632054]
[1765118314637,3.35539155,128.59,128.56,0.05632054]
[1765118315750,0.05539155,128.59,128.56,3.25632054]
[1765118316149,3.35539155,128.59,128.56,0.05632054]
[1765118316838,0.05539155,128.59,128.56,3.25632054]
[1765118317237,0.05539155,128.59,128.49,108.9462]
[1765118317238,3.3,128.55,128.48,19.12612482]
[1765118317438,3.3,128.54,128.45,3.2]
[1765118317843,3.3,128.53,128.45,3.2]
[1765118318041,3.3,128.56,128.47,3.2]
[1765118318242,0.04958815,128.53,128.5,3.25301514]
[1765118320441,0.04958815,128.53,128.52,3.2]
[1765118321754,3.3,128.59,128.53,3.2]
[1765118322253,3.3,128.65,128.55,3.2]
[1765118322845,3.35423744,128.61,128.59,0.0579954]
[1765118323044,3.35340468,128.61,128.59,0.0579954]
[1765118326445,0.05340468,128.61,128.59,0.0579954]
[1765118326852,3.35340468,128.61,128.59,0.0579954]
[1765118329642,3.21,128.6,128.52,3.27]
[1765118330546,3.21,128.59,128.52,3.27]
[1765118330742,3.26195327,128.57,128.54,0.05401245]
[1765118330947,3.26195327,128.57,128.54,3.32401245]
[1765118330948,0.05195327,128.57,128.54,3.32401245]
[1765118332157,0.05195327,128.57,128.54,0.05401245]
[1765118332353,0.05195327,128.57,128.54,3.32401245]
[1765118333063,10.2064,128.63,128.54,10.32491245]
[1765118333263,10.2064,128.63,128.55,3.27]
[1765118333755,3.21,128.62,128.55,3.27]
[1765118334059,0.05665288,128.6,128.57,0.0536195]
[1765118334254,0.05665288,128.6,128.57,3.27]
[1765118334461,0.05665288,128.6,128.57,3.31948519]
[1765118336155,3.26665288,128.6,128.57,0.04948519]
[1765118336459,0.05665288,128.6,128.57,0.04948519]
[1765118337263,0.05665288,128.6,128.57,3.31948519]
[1765118341065,3.48665288,128.6,128.57,3.31948519]
[1765118341261,3.48665288,128.6,128.57,0.04948519]
[1765118341671,112.34565288,128.6,128.57,0.04948519]
[1765118341870,3.43,128.59,128.57,0.04948519]
[1765118342570,3.43,128.59,128.53,3.36]
[1765118342771,3.43,128.59,128.51,70.6]
[1765118343671,0.05191247,128.56,128.54,0.05074503]
[1765118343975,0.05191247,128.56,128.54,3.41074503]
[1765118345171,3.43,128.62,128.54,3.41074503]
[1765118345374,3.43,128.62,128.54,3.36]
[1765118346174,0.0557697,128.59,128.57,0.05821222]
[1765118346568,3.4857697,128.59,128.57,0.05821222]
[1765118348568,3.4857697,128.59,128.51,3.36]
[1765118348779,3.43,128.59,128.51,3.36]
[1765118349172,3.43,128.58,128.51,3.36]
[1765118349572,0.05078893,128.56,128.53,0.05438278]
[1765118349772,0.05078893,128.56,128.53,3.41438278]
[1765118350571,3.48078893,128.56,128.53,0.05438278]
[1765118354477,0.05078893,128.56,128.53,3.41438278]
[1765118356881,3.48078893,128.56,128.53,0.05438278]
[1765118357074,0.05078893,128.56,128.53,3.41438278]
[1765118361578,0.00078893,128.56,128.54,3.42]
[1765118361782,0.00078893,128.56,128.55,73.9]
[1765118364380,0.00078893,128.56,128.55,70.48]
[1765118364682,0.00078893,128.56,128.54,3.42]
[1765118367181,0.00078893,128.56,128.55,3.42]
[1765118367691,3.27,128.63,128.55,3.42]
[1765118368179,3.27,128.62,128.53,73.86]
[1765118368384,3.27,128.62,128.54,3.42]
[1765118368580,0.05500725,128.59,128.57,0.05348795]
[1765118368889,0.05500725,128.59,128.57,3.47348795]
[1765118372586,3.32500725,128.59,128.57,0.05348795]
[1765118373688,0.05500725,128.59,128.57,3.47348795]
[1765118375186,3.27,128.65,128.58,3.42]
[1765118375390,3.27,128.65,128.6,3.42]
[1765118376191,0.05482014,128.64,128.61,3.47122989]
[1765118378783,3.32482014,128.64,128.61,0.05122989]
[1765118379592,3.32482014,128.64,128.61,3.47122989]
[1765118379999,0.05482014,128.64,128.61,3.47122989]
[1765118380890,3.32482014,128.64,128.61,3.47122989]
[1765118381695,0.05482014,128.64,128.61,3.47122989]
[1765118383398,3.27,128.7,128.62,3.42]
[1765118383590,10.2628,128.7,128.62,3.42]
[1765118384092,6.9928,128.7,128.62,3.42]
[1765118384293,0.051809,128.67,128.66,3.42]
[1765118384490,111.9965,128.76,128.67,3.42]
[1765118384689,118.998,128.74,128.67,3.42]
[1765118385201,112.0076,128.74,128.67,3.42]
[1765118385592,3.27,128.71,128.67,3.42]
[1765118385793,3.27,128.71,128.69,0.05816364]
[1765118385994,7.05109682,128.72,128.69,0.05816364]
[1765118385995,10.32109682,128.72,128.69,0.05816364]
[1765118386193,119.07559682,128.72,128.69,0.05816364]
[1765118387089,0.05949682,128.72,128.69,3.47816364]
[1765118387495,3.32949682,128.72,128.69,0.05816364]
[1765118387798,112.08529682,128.72,128.69,0.05816364]
[1765118387998,3.19,128.71,128.69,0.05816364]
[1765118388387,3.19,128.7,128.66,70.26]
[1765118388889,118.9547,128.7,128.66,70.26]
[1765118389089,3.19,128.69,128.63,3.22]
[1765118389299,3.19,128.72,128.63,3.22]
[1765118389494,3.19,128.72,128.65,3.26934742]
[1765118389495,0.05402789,128.67,128.65,3.26934742]
[1765118389699,0.05089571,128.67,128.65,3.26934742]
[1765118390096,3.24089571,128.67,128.65,0.04934742]
[1765118390289,3.24089571,128.67,128.58,70.2]
[1765118390290,3.19,128.66,128.59,3.22]
[1765118390687,3.19,128.68,128.59,3.22]
[1765118391304,0.05062066,128.65,128.62,0.05814038]
[1765118392103,3.24062066,128.65,128.62,0.05814038]
[1765118396303,0.05062066,128.65,128.62,3.30814038]
[1765118396498,3.27,128.71,128.62,3.30814038]
[1765118396693,3.27,128.71,128.62,3.25]
[1765118397493,10.2619,128.71,128.62,3.25]
[1765118397699,10.2619,128.71,128.65,0.05540616]
[1765118397700,3.32262694,128.68,128.65,0.05540616]
[1765118398598,3.27,128.67,128.59,73.41]
[1765118399002,3.27,128.65,128.59,70.16]
[1765118399604,3.32087078,128.63,128.61,0.05112958]
[1765118400408,3.27,128.62,128.56,3.25]
[1765118400607,3.27,128.61,128.53,3.25]
[1765118401010,3.27,128.59,128.52,70.14]
[1765118401206,3.32558606,128.57,128.54,0.05311462]
[1765118402007,3.27,128.55,128.46,3.25]
[1765118402407,10.2712,128.54,128.46,3.25]
[1765118402710,3.27,128.53,128.46,3.25]
[1765118402908,3.27,128.5,128.48,0.0544655]
[1765118403906,3.27,128.49,128.44,70.12]
[1765118405007,3.32712305,128.48,128.45,0.05018701]
[1765118405213,112.28742305,128.48,128.45,0.05018701]
[1765118405414,3.27,128.47,128.45,0.05018701]
[1765118405808,3.27,128.46,128.37,73.37]
[1765118406217,112.2554,128.45,128.37,73.37]
[1765118406819,0.05636085,128.42,128.4,0.05551814]
[1765118407522,3.32636085,128.42,128.4,0.05551814]
[1765118407712,3.32636085,128.42,128.37,70.12]
[1765118407713,3.27,128.4,128.37,70.12]
[1765118407914,3.27,128.39,128.37,70.12]
[1765118408212,3.27,128.39,128.32,93.24]
[1765118408917,0.05039188,128.37,128.34,0.05703043]
[1765118409414,109.0594,128.36,128.34,0.05703043]
[1765118409607,3.27,128.35,128.34,0.05703043]
[1765118410021,0.05039188,128.37,128.34,3.30703043]
[1765118413317,0.05039188,128.37,128.34,0.05703043]
[1765118413519,112.3646,128.32,128.21,3.25]
[1765118413706,3.27,128.32,128.22,3.25]
[1765118413908,112.3392,128.35,128.23,3.25]
[1765118414219,109.0568,128.37,128.25,3.25]
[1765118414518,0.05278104,128.32,128.3,3.30588094]
[1765118414715,0.05558893,128.32,128.3,3.30588094]
[1765118415418,3.32558893,128.32,128.3,0.05588094]
[1765118415718,0.05558893,128.32,128.3,0.05588094]
[1765118416306,3.32558893,128.32,128.3,0.05588094]
[1765118417013,3.27,128.31,128.3,0.05588094]
[1765118417220,3.27,128.31,128.26,70.12]
[1765118417607,10.2644,128.3,128.26,70.12]
[1765118418310,0.05780213,128.29,128.27,0.05321911]
[1765118418708,0.05780213,128.29,128.27,3.40321911]
[1765118419312,0.05780213,128.29,128.27,0.05321911]
[1765118419714,3.30780213,128.29,128.27,0.05321911]
[1765118419921,0.05780213,128.29,128.27,0.05321911]
[1765118420217,3.30780213,128.29,128.27,0.05321911]
[1765118420911,119.44320213,128.29,128.27,0.05321911]
[1765118421111,3.25,128.28,128.21,73.47]
[1765118422328,0.05573871,128.26,128.22,3.35]
[1765118425022,3.25,128.35,128.23,3.35]
[1765118425517,7.0118,128.35,128.23,10.3676]
[1765118425725,7.0118,128.35,128.21,179.304]
[1765118425726,3.25,128.32,128.21,73.47]
[1765118426119,3.30170945,128.28,128.25,0.05804949]
[1765118427128,0.05170945,128.28,128.25,0.05804949]
[1765118427621,0.05170945,128.28,128.25,3.40804949]
[1765118428622,0.05170945,128.28,128.25,10.42464949]
[1765118428819,0.05170945,128.28,128.26,3.35]
[1765118429025,3.25,128.35,128.28,3.35]
[1765118429923,0.05575926,128.33,128.3,3.40928153]
[1765118430431,0.05575926,128.33,128.31,3.35]
[1765118430927,3.25,128.38,128.32,70.1]
[1765118431126,3.25,128.38,128.32,73.45]
[1765118431334,3.25,128.41,128.33,112.4343]
[1765118431627,3.25,128.41,128.34,3.35]
[1765118431824,0.05367389,128.39,128.36,0.05538068]
[1765118432530,3.30367389,128.39,128.36,0.05538068]
[1765118433128,3.25,128.38,128.3,70.08]
[1765118433725,3.25,128.38,128.3,73.43]
[1765118433930,0.0535502,128.35,128.33,0.05822171]
[1765118434128,0.0535502,128.35,128.33,3.40822171]
[1765118436125,0.0535502,128.35,128.34,3.35]
[1765118436721,3.25,128.41,128.34,3.35]
[1765118436932,3.25,128.41,128.35,70.06]
[1765118437137,3.25,128.44,128.36,3.35]
[1765118437841,0.05710769,128.41,128.39,0.05781918]
[1765118439229,0.05710769,128.41,128.39,3.40781918]
[1765118440335,3.30710769,128.41,128.39,0.05781918]
[1765118441036,0.05710769,128.41,128.39,0.05781918]
[1765118441341,0.05710769,128.41,128.36,73.37]
[1765118441342,3.25,128.4,128.32,3.35]
[1765118441525,3.25,128.4,128.34,3.35]
[1765118441925,3.25,128.44,128.34,3.35]
[1765118442128,3.25,128.43,128.34,3.35]
[1765118442336,0.05899829,128.4,128.37,3.40859409]
[1765118443633,3.30899829,128.4,128.37,0.05859409]
[1765118444335,3.25,128.38,128.37,0.05859409]
[1765118444538,9.28472353,128.38,128.37,0.05859409]
[1765118445135,6.03472353,128.38,128.33,73.33]
[1765118445327,6.03472353,128.38,128.23,109.1646]
[1765118445328,112.3324,128.34,128.25,3.35]
[1765118445639,9.28472353,128.33,128.25,3.35]
[1765118445846,6.03472353,128.32,128.27,3.35]
[1765118446035,6.08565739,128.31,128.28,0.04727445]
[1765118446335,0.05093386,128.31,128.28,3.39727445]
[1765118449031,6.77044206,128.36,128.28,3.39727445]
[1765118449233,6.77044206,128.4,128.31,3.16]
[1765118449436,5.94341553,128.39,128.33,3.16]
[1765118449637,5.94341553,128.38,128.33,3.16]
[1765118449837,6.77044206,128.41,128.33,3.16]
[1765118450038,0.05117205,128.38,128.37,3.16]
[1765118450242,0.05614308,128.39,128.36,0.05546203]
[1765118450443,3.21614308,128.39,128.36,0.05546203]
[1765118451037,0.05614308,128.39,128.36,3.21546203]
[1765118458047,0.05614308,128.39,128.36,0.05546203]
[1765118458253,3.47614308,128.39,128.36,0.05546203]
[1765118459346,0.05614308,128.39,128.36,0.05546203]
[1765118459547,0.05614308,128.39,128.36,3.18546203]
[1765118460255,0.05614308,128.39,128.36,0.05546203]
[1765118460553,3.47614308,128.39,128.36,0.05546203]
[1765118461154,0.05614308,128.39,128.36,3.18546203]
[1765118464351,3.47614308,128.39,128.36,0.05546203]
[1765118465453,112.51084308,128.39,128.36,0.05546203]
[1765118465650,3.42,128.38,128.36,0.05546203]
[1765118466954,0.05614308,128.39,128.36,0.05546203]
[1765118467142,3.47614308,128.39,128.36,0.05546203]
[1765118467658,109.0202,128.41,128.36,0.05546203]
[1765118467659,3.42,128.46,128.37,3.13]
[1765118467950,3.42,128.46,128.39,3.13]
[1765118468149,3.42,128.44,128.36,3.13]
[1765118468355,3.42,128.43,128.36,3.13]
[1765118468561,0.04976073,128.41,128.38,0.05111447]
[1765118468856,3.46976073,128.41,128.38,0.05111447]
[1765118469957,3.42,128.4,128.38,0.05111447]
[1765118472559,3.46976073,128.41,128.38,0.05111447]
[1765118473661,3.42,128.51,128.4,3.13]
[1765118473857,3.42,128.51,128.42,3.13]
[1765118474154,3.42,128.51,128.43,3.13]
[1765118474658,0.05605341,128.48,128.46,0.04945786]
[1765118477755,0.05605341,128.48,128.46,3.24945786]
[1765118479362,3.25,128.54,128.47,72.94]
[1765118479662,3.25,128.54,128.48,112.1548]
[1765118479865,3.25,128.57,128.51,3.2]
[1765118480051,3.25,128.61,128.52,112.1217]
[1765118480255,3.25,128.61,128.53,178.6351]
[1765118480455,0.05536002,128.58,128.56,0.05655029]
[1765118481263,0.05536002,128.58,128.56,3.25655029]
[1765118481659,3.30536002,128.58,128.56,0.05655029]
[1765118482068,0.05536002,128.58,128.56,0.05655029]
[1765118482366,3.30536002,128.58,128.56,0.05655029]
[1765118482767,0.05536002,128.58,128.57,10.1995]
[1765118482971,0.05536002,128.58,128.56,0.05655029]
[1765118483163,3.30536002,128.58,128.56,0.05655029]
[1765118489574,3.30536002,128.58,128.51,69.64]
[1765118490666,3.30536002,128.58,128.53,0.05869137]
[1765118491374,3.30536002,128.58,128.53,3.25869137]
[1765118492072,0.05536002,128.58,128.53,3.25869137]
[1765118492373,3.30536002,128.58,128.53,3.25869137]
[1765118493269,3.30536002,128.58,128.53,0.05869137]
[1765118494372,3.25,128.53,128.44,3.2]
[1765118494571,3.25,128.53,128.45,69.58]
[1765118495471,0.05701403,128.5,128.48,0.05022869]
[1765118496774,0.05701403,128.5,128.48,3.25022869]
[1765118498174,0.05701403,128.5,128.48,0.05022869]
[1765118498981,0.05701403,128.5,128.48,3.25022869]
[1765118499866,0.05701403,128.5,128.48,0.05022869]
[1765118500179,0.05701403,128.5,128.48,3.25022869]
[1765118500886,3.30701403,128.5,128.48,0.05022869]
[1765118501179,0.05701403,128.5,128.48,0.05022869]
[1765118501377,0.05701403,128.5,128.48,3.25022869]
[1765118502377,3.30701403,128.5,128.48,0.05022869]
[1765118502576,0.05701403,128.5,128.48,0.05022869]
[1765118502778,0.05701403,128.5,128.48,3.25022869]
[1765118507085,3.25,128.56,128.48,3.25022869]
[1765118507284,3.25,128.54,128.48,3.2]